fUSD/lending_fUSD_20251210
["ID","MTS","AMOUNT","RATE_DAILY","PERIOD"]
[398127438,1765389043769,-500.0,0.00041095,60]
[398127439,1765389043778,-500.0,0.00041095,60]
[398127440,1765389043788,-500.0,0.00041095,15]
[398127441,1765389043797,-500.0,0.00041095,15]
[398127442,1765389043806,-500.0,0.00041095,15]
[398127443,1765389043815,-500.0,0.00041095,15]
[398127444,1765389043824,-500.0,0.00041095,60]
[398127445,1765389043836,-500.0,0.00041095,60]
[398127446,1765389043846,-190.33935059,0.00041095,60]
[398127447,1765389043855,-500.0,0.00041095,60]
[398127448,1765389043868,-500.0,0.00041095,60]
[398127449,1765389043879,-500.0,0.00041095,60]
[398127450,1765389043889,-525.36,0.00041095,60]
[398127451,1765389043899,-524.41105336,0.00041095,60]
[398127453,1765389043908,-315.35138936,0.00041095,60]
[398127454,1765389043920,-506.13869105,0.00041095,60]
[398127455,1765389043930,-500.0,0.00041095,60]
[398127456,1765389043939,-500.0,0.00041095,60]
[398127457,1765389043949,-500.0,0.00041095,60]
[398127459,1765389043959,-500.0,0.00041095,60]
[398127461,1765389043969,-576.18952942,0.00041095,60]
[398127463,1765389043979,-500.0,0.00041095,60]
[398127465,1765389043988,-500.0,0.00041095,60]
[398127466,1765389043997,-500.0,0.00041095,60]
[398127467,1765389044007,-500.0,0.00041095,60]
[398127468,1765389044016,-500.0,0.00041095,60]
[398127469,1765389044025,-500.0,0.00041095,60]
[398127470,1765389044035,-500.0,0.00041095,60]
[398127471,1765389044045,-500.0,0.00041095,60]
[398127472,1765389044055,-500.0,0.00041095,60]
[398127473,1765389044064,-500.0,0.00041095,60]
[398127474,1765389044074,-500.0,0.00041095,60]
[398127475,1765389044084,-426.99960664,0.00041095,60]
[398127476,1765389044093,-500.0,0.00041095,60]
[398127477,1765389044103,-500.0,0.00041095,60]
[398127478,1765389044112,-500.0,0.00041095,60]
[398127479,1765389044122,-500.0,0.00041095,60]
[398127480,1765389044132,-500.0,0.00041095,60]
[398127481,1765389044143,-500.0,0.00041095,60]
[398127482,1765389044152,-447.54106032,0.00041095,60]
[398127483,1765389044161,-500.0,0.00041095,60]
[398127484,1765389044171,-500.0,0.00041095,2]
[398127485,1765389044181,-500.0,0.00041095,2]
[398127486,1765389044190,-500.0,0.00041095,2]
[398127487,1765389044199,-500.0,0.00041095,2]
[398127488,1765389044208,-500.0,0.00041095,60]
[398127489,1765389044217,-500.0,0.00041095,60]
[398127490,1765389044226,-500.0,0.00041095,60]
[398127491,1765389044235,-500.0,0.00041095,60]
[398127492,1765389044245,-500.0,0.00041095,60]
[398127493,1765389044254,-500.0,0.00041095,60]
[398127494,1765389044263,-500.0,0.00041095,60]
[398127495,1765389044273,-500.0,0.00041095,60]
[398127496,1765389044282,-500.0,0.00041095,60]
[398127497,1765389044291,-500.0,0.00041095,60]
[398127498,1765389044300,-500.0,0.00041095,60]
[398127499,1765389044310,-500.0,0.00041095,60]
[398127500,1765389044319,-500.0,0.00041095,60]
[398127501,1765389044329,-500.0,0.00041095,60]
[398127502,1765389044339,-500.0,0.00041095,60]
[398127503,1765389044348,-500.0,0.00041095,60]
[398127504,1765389044357,-500.0,0.00041095,60]
[398127505,1765389044367,-500.0,0.00041095,60]
[398127506,1765389044376,-500.0,0.00041095,60]
[398127507,1765389044385,-500.0,0.00041095,60]
[398127508,1765389044396,-500.0,0.00041095,60]
[398127509,1765389044406,-500.0,0.00041095,60]
[398127510,1765389044416,-500.0,0.00041095,60]
[398127511,1765389044436,-500.41996057,0.00041095,60]
[398127512,1765389044447,-500.0,0.00041095,60]
[398127513,1765389044456,-500.0,0.00041095,60]
[398127514,1765389044466,-500.0,0.00041095,60]
[398127515,1765389044476,-500.0,0.00041095,60]
[398127516,1765389044486,-500.0,0.00041095,60]
[398127517,1765389044495,-500.0,0.00041095,60]
[398127518,1765389044505,-500.0,0.00041095,60]
[398127519,1765389044514,-500.0,0.00041095,60]
[398127520,1765389044524,-500.0,0.00041095,60]
[398127521,1765389044534,-500.0,0.00041095,60]
[398127522,1765389044544,-500.0,0.00041095,60]
[398127523,1765389044559,-500.0,0.00041095,60]
[398127524,1765389044569,-500.0,0.00041095,60]
[398127525,1765389044579,-500.0,0.00041095,60]
[398127526,1765389044589,-500.0,0.00041095,60]
[398127527,1765389044599,-500.0,0.00041095,60]
[398127528,1765389044609,-500.0,0.00041095,60]
[398127529,1765389044619,-500.0,0.00041095,60]
[398127530,1765389044629,-500.0,0.00041095,60]
[398127531,1765389044638,-500.0,0.00041095,60]
[398127532,1765389044649,-634.17450519,0.00041095,60]
[398127533,1765389044659,-500.0,0.00041095,60]
[398127534,1765389044669,-500.0,0.00041095,60]
[398127535,1765389044679,-500.0,0.00041095,60]
[398127536,1765389044688,-500.0,0.00041095,60]
[398127537,1765389044698,-500.0,0.00041095,60]
[398127538,1765389044711,-500.0,0.00041095,60]
[398127539,1765389044721,-500.0,0.00041095,60]
[398127540,1765389044730,-645.26397713,0.00041095,60]
[398127541,1765389044740,-500.0,0.00041095,60]
[398127542,1765389044750,-500.0,0.00041095,60]
[398127543,1765389044759,-500.0,0.00041095,60]
[398127544,1765389044769,-500.0,0.00041095,60]
[398127545,1765389044778,-500.0,0.00041095,60]
[398127546,1765389044788,-500.0,0.00041095,60]
[398127547,1765389044797,-342.27456114,0.00041095,60]
[398127548,1765389044807,-500.0,0.00041095,60]
[398127549,1765389044816,-500.0,0.00041095,60]
[398127550,1765389044826,-500.0,0.00041095,60]
[398127551,1765389044840,-502.98485281,0.00041095,60]
[398127552,1765389044850,-500.0,0.00041095,60]
[398127553,1765389044859,-500.0,0.00041095,60]
[398127554,1765389044869,-500.0,0.00041095,60]
[398127555,1765389044879,-502.01334384,0.00041095,60]
[398127556,1765389044889,-500.0,0.00041095,60]
[398127557,1765389044899,-500.0,0.00041095,60]
[398127558,1765389044909,-500.0,0.00041095,60]
[398127559,1765389044919,-500.0,0.00041095,60]
[398127560,1765389044928,-500.0,0.00041095,60]
[398127561,1765389044938,-500.0,0.00041095,60]
[398127562,1765389044947,-500.0,0.00041095,60]
[398127563,1765389044956,-500.0,0.00041095,60]
[398127564,1765389044966,-500.0,0.00041095,60]
[398127565,1765389044975,-502.52135204,0.00041095,60]
[398127566,1765389044985,-500.0,0.00041095,60]
[398127567,1765389044995,-500.0,0.00041095,60]
[398127568,1765389045005,-500.0,0.00041095,60]
[398127569,1765389045015,-500.0,0.00041095,60]
[398127570,1765389045024,-500.0,0.00041095,60]
[398127571,1765389045034,-598.42,0.00041095,60]
[398127572,1765389045043,-500.0,0.00041095,60]
[398127573,1765389045052,-500.0,0.00041095,60]
[398127574,1765389045062,-500.0,0.00041095,60]
[398127575,1765389045071,-500.0,0.00041095,60]
[398127576,1765389045081,-500.0,0.00041095,60]
[398127577,1765389045090,-500.0,0.00041095,60]
[398127578,1765389045099,-500.0,0.00041095,60]
[398127579,1765389045109,-500.0,0.00041095,60]
[398127580,1765389045118,-500.0,0.00041095,60]
[398127581,1765389045127,-500.0,0.00041095,60]
[398127582,1765389045136,-500.0,0.00041095,60]
[398127583,1765389045145,-500.0,0.00041095,60]
[398127584,1765389045155,-500.0,0.00041095,60]
[398127585,1765389045164,-500.0,0.00041095,60]
[398127586,1765389045173,-500.0,0.00041095,60]
[398127587,1765389045183,-500.0,0.00041095,60]
[398127588,1765389045192,-500.0,0.00041095,60]
[398127589,1765389045201,-500.0,0.00041095,60]
[398127590,1765389045211,-500.0,0.00041095,60]
[398127591,1765389045220,-525.74538742,0.00041095,60]
[398127592,1765389045229,-500.0,0.00041095,60]
[398127593,1765389045239,-500.0,0.00041095,60]
[398127594,1765389045248,-500.0,0.00041095,60]
[398127595,1765389045258,-500.0,0.00041095,60]
[398127596,1765389045268,-500.0,0.00041095,60]
[398127597,1765389045278,-500.0,0.00041095,60]
[398127598,1765389045287,-187.00218525,0.00041095,60]
[398127599,1765389045318,-312.99781475,0.00041095,60]
[398127600,1765389045327,-140.00218525,0.00041095,60]
[398127615,1765389214676,-307.08770607,0.00017873,2]
[398127616,1765389214705,-500.0,0.00017873,2]
[398127617,1765389214733,-500.0,0.00017873,2]
[398127618,1765389214761,-500.0,0.00017873,2]
[398127619,1765389214789,-500.0,0.00017873,2]
[398127620,1765389214816,-500.0,0.00017873,2]
[398127621,1765389214843,-500.0,0.00017999,2]
[398127622,1765389214872,-500.0,0.00017999,2]
[398127623,1765389214900,-500.0,0.00017999,2]
[398127624,1765389214937,-500.0,0.00017999,2]
[398127625,1765389215111,-385.83458786,0.00018421,2]
[398127626,1765389217599,-551.55829749,0.00018421,2]
[398127627,1765389217627,-497.64029733,0.00018421,2]
[398127628,1765389217655,-1000.0,0.00018421,2]
[398127629,1765389217682,-1000.0,0.00018421,2]
[398127630,1765389217709,-500.0,0.00018421,2]
[398127631,1765389217796,-2901.61281036,0.00018873,2]
[398127632,1765389220694,-1387.83761564,0.00018873,2]
[398127633,1765389220721,-1500.0,0.00018968,2]
[398127634,1765389220748,-1000.0,0.00018968,2]
[398127635,1765389220775,-224.33476872,0.00019516,2]
[398127636,1765389220838,-1775.66523128,0.00019516,2]
[398127637,1765389385810,4282.48055862,0.000202,30]
[398127638,1765389418880,181.0,1.14e-06,120]
[398127639,1765389555594,-250.0,0.00017,2]
[398127640,1765389555623,-167.51342382,0.00017973,2]
[398127641,1765389555652,-500.0,0.00017999,2]
[398127642,1765389555680,-629.18828695,0.00017999,2]
[398127643,1765389555709,-500.0,0.00017999,2]
[398127644,1765389555736,-500.0,0.00017999,2]
[398127645,1765389555764,-387.0,0.000187,2]
[398127646,1765389555792,-250.0,0.00019032,2]
[398127647,1765389555819,-250.0,0.00019799,2]
[398127648,1765389555847,-300.0,0.00020062,2]
[398127649,1765389555878,-264.0,0.00020063,2]
[398127650,1765389556056,-2004.60657846,0.00020064,2]
[398127651,1765389561581,-495.39342154,0.00020064,2]
[398127652,1765389561610,-1500.0,0.00020612,2]
[398127653,1765389561640,-300.0,0.00021844,2]
[398127654,1765389561669,-518.37018128,0.00025384,49]
[398127655,1765389678860,-500.0,0.00017999,2]
[398127656,1765389678884,-154.4701172,0.00017999,2]
[398127657,1765389681250,-149.5298828,0.00017999,2]
[398127658,1765389681273,-34.27175869,0.00017999,2]
[398127659,1765389683880,-238.29161394,0.00017999,2]
[398127661,1765389726409,-227.43662737,0.00017999,2]
[398127662,1765389741841,-181.5021138,0.00021844,2]
[398127663,1765389755855,500.0,0.00017999,2]
[398127664,1765389757420,-350.0,0.00022203,2]
[398127665,1765389763590,500.0,0.00017999,2]
[398127666,1765389850092,218.2527112,0.00019873,2]
[398127667,1765389850302,218.2527112,0.00022514,2]
[398127668,1765389850469,218.2527112,0.00025155,2]
[398127669,1765389891174,2037.1261972,0.00019873,2]
[398127670,1765389891388,2037.1261972,0.00022513,2]
[398127671,1765389891594,2037.1261972,0.00025154,2]
[398127673,1765389963099,151.0,0.00025155,2]
[398127675,1765390100150,235.56790212,0.00025202,2]
[398127683,1765390232357,-1537.96339489,0.00025484,2]
[398127684,1765390232367,-2037.1261972,0.00027794,2]
[398127685,1765390232377,-218.2527112,0.00027797,2]
[398127686,1765390232387,-466.53316317,0.00027976,56]
[398127687,1765390232397,-300.0,0.00028075,2]
[398127688,1765390232407,-300.0,0.00028075,2]
[398127689,1765390232417,-1200.0,0.00028075,2]
[398127690,1765390232427,-599.60298507,0.00028076,2]
[398127691,1765390232437,-200.0,0.00028076,2]
[398127692,1765390232447,-207.4,0.00028076,2]
[398127693,1765390232457,-215.0738,0.00028076,2]
[398127694,1765390232467,-219.85877281,0.00028076,2]
[398127695,1765390232477,-311.1,0.00028076,2]
[398127696,1765390232487,-427.0774618,0.00028247,2]
[398127697,1765390232497,-322.6107,0.00028624,2]
[398127698,1765390232508,-334.5472959,0.00029172,2]
[398127699,1765390232517,-466.53316311,0.00029195,58]
[398127701,1765390232527,-346.92554585,0.0002972,2]
[398127703,1765390232537,-359.76179104,0.00030268,2]
[398127705,1765390232547,-420.0,0.00030318,2]
[398127707,1765390232557,-150.0,0.00030378,2]
[398127709,1765390232566,-3025.37438603,0.00030379,2]
[398127711,1765390232578,-405.95789884,0.00030379,2]
[398127713,1765390232590,-484.52160864,0.00030379,2]
[398127716,1765390232606,-4954.96610649,0.00030379,2]
[398127718,1765390232615,-9999.99,0.00030379,2]
[398127720,1765390232624,-3800.21,0.00030379,2]
[398127722,1765390232635,-8224.04,0.00030379,20]
[398127724,1765390232645,-466.53316311,0.00030414,61]
[398127726,1765390232655,-500.0,0.0003045,2]
[398127728,1765390232665,-9000.0,0.00030513,2]
[398127730,1765390232674,-9000.0,0.00030568,2]
[398127732,1765390232684,-9000.0,0.00030623,2]
[398127734,1765390232693,-9000.0,0.00030678,2]
[398127736,1765390232703,-172.15215856,0.00030816,2]
[398127738,1765390232713,-900.0,0.00031008,2]
[398127740,1765390232723,-151.0,0.00031008,2]
[398127742,1765390232733,-151.0,0.00031008,2]
[398127744,1765390232742,-900.0,0.00031556,2]
[398127746,1765390232752,-151.0,0.00031556,2]
[398127748,1765390232763,-466.53316311,0.00031633,64]
[398127750,1765390232772,-427.0774618,0.00031847,2]
[398127752,1765390232782,-900.0,0.00032104,2]
[398127754,1765390232792,-151.0,0.00032104,2]
[398127756,1765390232801,-900.0,0.00032652,2]
[398127758,1765390232811,-151.0,0.00032652,2]
[398127760,1765390232820,-186.12,0.00032742,2]
[398127762,1765390232830,-466.53316311,0.00032852,67]
[398127764,1765390232840,-166.66,0.00033046,30]
[398127766,1765390232850,-900.0,0.000332,2]
[398127769,1765390232859,-151.0,0.000332,2]
[398127771,1765390232869,-166.66,0.00033742,30]
[398127773,1765390232878,-900.0,0.00033748,2]
[398127775,1765390232888,-151.0,0.00033748,2]
[398127777,1765390232898,-466.53316311,0.00034071,70]
[398127779,1765390232907,-1989.739,0.00034121,37]
[398127781,1765390232917,-173.63,0.00034121,37]
[398127783,1765390232926,-900.0,0.00034296,2]
[398127785,1765390232936,-224.94137793,0.00034394,2]
[398127786,1765390232945,-166.66,0.00034437,30]
[398127789,1765390232955,-223.19,0.00034596,2]
[398127791,1765390232965,-1000.0,0.00034669,2]
[398127793,1765390232975,-177.74194921,0.00034669,2]
[398127795,1765390232984,-500.0,0.00034669,2]
[398127796,1765390232994,-500.0,0.00034669,2]
[398127799,1765390233004,-1000.0,0.00034669,2]
[398127801,1765390233014,-500.0,0.00034669,2]
[398127803,1765390233024,-500.0,0.00034669,2]
[398127805,1765390233034,-655.82338047,0.00034669,2]
[398127807,1765390233047,-344.17661953,0.00034669,2]
[398127809,1765390233057,-500.0,0.00034669,2]
[398127811,1765390233067,-500.0,0.00034669,2]
[398127813,1765390233077,-1000.0,0.00034669,2]
[398127815,1765390233087,-500.0,0.00034669,2]
[398127817,1765390233097,-500.0,0.00034669,2]
[398127819,1765390233107,-1000.0,0.00034669,2]
[398127821,1765390233117,-500.0,0.00034669,2]
[398127823,1765390233127,-500.0,0.00034669,2]
[398127825,1765390233137,-500.0,0.00034669,2]
[398127827,1765390233148,-1000.0,0.00034669,2]
[398127828,1765390233157,-500.0,0.00034669,2]
[398127829,1765390233167,-345.9964873,0.00034669,2]
[398127830,1765390233179,-249.14934491,0.00034669,2]
[398127831,1765390233190,-500.0,0.00034669,2]
[398127832,1765390233201,-174.35429738,0.00034669,2]
[398127833,1765390235235,152.16,0.00025484,2]
[398127834,1765390238400,-244.09240371,0.00027694,2]
[398127835,1765390238410,-142.90759629,0.00033853,2]
[398127836,1765390238454,-308.75194791,0.00033853,2]
[398127837,1765390238464,-325.64570262,0.00034669,2]
[398127838,1765390238474,-500.0,0.00034669,2]
[398127839,1765390238486,-500.0,0.00034669,2]
[398127840,1765390238496,-500.0,0.00034669,2]
[398127841,1765390238507,-250.0,0.00034669,2]
[398127842,1765390238516,-250.0,0.00034669,2]
[398127843,1765390238526,-250.0,0.00034669,2]
[398127844,1765390238536,-250.0,0.00034669,2]
[398127845,1765390238547,-250.0,0.00034669,2]
[398127846,1765390238557,-574.12855637,0.00034669,2]
[398127847,1765390238568,-250.0,0.00034669,2]
[398127848,1765390238578,-250.0,0.00034669,2]
[398127849,1765390238588,-250.0,0.00034669,2]
[398127850,1765390238598,-250.0,0.00034669,2]
[398127851,1765390238608,-250.0,0.00034669,2]
[398127852,1765390238618,-250.0,0.00034669,2]
[398127853,1765390238628,-250.0,0.00034669,2]
[398127854,1765390238638,-250.0,0.00034669,2]
[398127855,1765390238648,-250.0,0.00034669,2]
[398127856,1765390238658,-250.0,0.00034669,2]
[398127857,1765390238667,-250.0,0.00034669,2]
[398127858,1765390238678,-1000.0,0.00034669,2]
[398127859,1765390238688,-1000.0,0.00034669,2]
[398127860,1765390238697,-151.80375574,0.00034669,2]
[398127861,1765390238707,-1000.0,0.00034669,2]
[398127862,1765390238717,-1000.0,0.00034669,2]
[398127863,1765390238727,-1000.0,0.00034669,2]
[398127864,1765390238736,-1000.0,0.00034669,2]
[398127865,1765390238746,-151.0,0.00034669,2]
[398127866,1765390238756,-1000.0,0.00034669,2]
[398127867,1765390238766,-1000.0,0.00034669,2]
[398127868,1765390238775,-1000.0,0.00034669,2]
[398127869,1765390238785,-177.5262,0.00034669,2]
[398127870,1765390238795,-1000.0,0.00034669,2]
[398127871,1765390238804,-1000.0,0.00034669,2]
[398127872,1765390238815,-1000.0,0.00034669,2]
[398127873,1765390238824,-1000.0,0.00034669,2]
[398127875,1765390238834,-1000.0,0.00034669,2]
[398127877,1765390238843,-1000.0,0.00034669,2]
[398127878,1765390238854,-500.0,0.00034669,2]
[398127880,1765390238865,-500.0,0.00034669,2]
[398127882,1765390238874,-500.0,0.00034669,2]
[398127884,1765390238884,-500.0,0.00034669,2]
[398127886,1765390238894,-544.08822076,0.00034669,2]
[398127887,1765390238904,-151.0,0.00034669,2]
[398127888,1765390238914,-151.0,0.00034669,2]
[398127889,1765390238924,-151.0,0.00034669,2]
[398127890,1765390238934,-151.0,0.00034669,2]
[398127891,1765390238943,-151.0,0.00034669,2]
[398127892,1765390238954,-151.0,0.00034669,2]
[398127893,1765390238964,-202.62,0.00034669,14]
[398127894,1765390238974,-150.0,0.0003469,2]
[398127895,1765390238984,-150.962,0.0003469,2]
[398127896,1765390238993,-150.245,0.0003469,2]
[398127897,1765390239003,-171.909,0.0003469,2]
[398127898,1765390239013,-150.0,0.0003469,2]
[398127899,1765390239023,-150.0,0.0003469,2]
[398127900,1765390239033,-6515.0,0.0003473,2]
[398127901,1765390239043,-4673.822,0.0003473,2]
[398127902,1765390239054,-253.0,0.0003473,2]
[398127903,1765390239064,-999.0,0.00034758,3]
[398127904,1765390239075,-821.0,0.0003484,120]
[398127905,1765390239086,-900.0,0.00034844,2]
[398127906,1765390239097,-1046.34,0.00034846,2]
[398127907,1765390239107,-174.95,0.00034913,2]
[398127908,1765390239118,-1000.0,0.00035085,2]
[398127909,1765390239128,-166.66,0.00035133,30]
[398127910,1765390239138,-595.37131296,0.00035217,2]
[398127911,1765390239148,-151.0,0.00035217,2]
[398127912,1765390239158,-466.53316311,0.0003529,73]
[398127913,1765390239168,-863.28,0.00035314,2]
[398127914,1765390239179,-900.0,0.00035392,2]
[398127915,1765390239188,-427.0774618,0.00035447,2]
[398127916,1765390239198,-9068.33551663,0.00035665,2]
[398127917,1765390239208,-744.23890838,0.00035765,2]
[398127918,1765390239218,-166.66,0.00035829,30]
[398127919,1765390239231,-223.19,0.00035893,2]
[398127920,1765390239241,-900.0,0.0003594,2]
[398127921,1765390239251,-188.98,0.00036072,120]
[398127922,1765390239261,-9068.33551662,0.00036315,2]
[398127923,1765390239273,-254.64,0.00036343,2]
[398127924,1765390239282,-900.0,0.00036488,2]
[398127925,1765390239291,-166.66,0.00036525,30]
[398127926,1765390239302,-9068.33551662,0.00036964,2]
[398127927,1765390239312,-223.19,0.00037191,2]
[398127928,1765390239322,-1000.0,0.00037535,2]
[398127929,1765390239331,-9068.33551662,0.00037614,2]
[398127930,1765390239341,-451.6595442,0.00037859,2]
[398127931,1765390239350,-9068.33551662,0.00038264,2]
[398127932,1765390239360,-223.19,0.00038488,2]
[398127933,1765390239370,-366.99496607,0.00038593,2]
[398127934,1765390239380,-233.89826625,0.00038791,2]
[398127935,1765390239391,-9068.33551662,0.00038913,2]
[398127936,1765390239401,-427.0774618,0.00039047,2]
[398127937,1765390239412,-821.0,0.00039194,120]
[398127938,1765390239422,-179.99866635,0.00039243,2]
[398127939,1765390239431,-9068.33551662,0.00039563,2]
[398127940,1765390239441,-500.0,0.00039589,2]
[398127941,1765390239451,-179.99866635,0.00039695,2]
[398127942,1765390239461,-223.19,0.00039785,2]
[398127943,1765390239471,-2500.0,0.0004,120]
[398127944,1765390239481,-383.74306,0.0004,120]
[398127945,1765390239492,-698.51,0.0004,30]
[398127946,1765390239501,-706.75,0.0004,30]
[398127947,1765390239511,-700.97,0.0004,30]
[398127948,1765390239521,-179.99866635,0.00040147,2]
[398127949,1765390239530,-703.9,0.00040156,30]
[398127950,1765390239540,-687.55,0.00040156,30]
[398127951,1765390239550,-500.0,0.00040156,14]
[398127952,1765390239560,-500.0,0.00040156,30]
[398127953,1765390239569,-702.71,0.00040207,30]
[398127954,1765390239579,-9068.33551662,0.00040213,15]
[398127955,1765390239591,-500.0,0.00040256,14]
[398127956,1765390239601,-500.0,0.00040256,30]
[398127957,1765390239611,-218.94857437,0.00040353,7]
[398127958,1765390239621,-2500.0,0.000405,120]
[398127959,1765390239630,-179.99866635,0.00040598,30]
[398127960,1765390239639,-186.12,0.00040733,14]
[398127961,1765390239649,-1000.0,0.00040795,2]
[398127962,1765390239660,-1511.4821,0.00040795,2]
[398127963,1765390239669,-9068.33551662,0.00040862,15]
[398127964,1765390239678,-203.15225593,0.00040894,13]
[398127965,1765390239688,-237.27712533,0.00040895,15]
[398127966,1765390239698,-33407.2883,0.00040895,2]
[398127967,1765390239708,-5000.0,0.00040895,120]
[398127968,1765390239719,-237.27712532,0.00040964,15]
[398127969,1765390239728,-164.18,0.00040975,2]
[398127970,1765390239738,-590.6,0.00040984,60]
[398127971,1765390239748,-510.25,0.00040984,60]
[398127972,1765390239758,-500.0,0.00040984,60]
[398127973,1765390239767,-322.56152199,0.00040984,60]
[398127974,1765390239781,-177.43847801,0.00040984,60]
[398127975,1765390239790,-79.70612663,0.00040984,60]
[398127976,1765390239801,-420.29387337,0.00040984,60]
[398127977,1765390239811,-500.0,0.00040984,60]
[398127978,1765390239821,-40416.88573199,0.00040985,4]
[398127979,1765390239832,-1000.0,0.00040985,4]
[398127981,1765390240492,-563.0,0.0003473,2]
[398127982,1765390240503,-466.53316311,0.00036509,76]
[398127983,1765390240514,-571.21112236,0.00040985,4]
[398127984,1765390240530,-4733.18646971,0.00040985,4]
[398127985,1765390240569,-1847.72,0.00040985,4]
[398127986,1765390240732,-341.75000007,0.00040985,4]
[398127987,1765390240745,-1634.21832685,0.00040985,4]
[398128202,1765390243519,-191.41275027,0.00040884,28]
[398128204,1765390243529,-108291.63994402,0.00040985,4]
[398128206,1765390243538,-500.0,0.00040989,31]
[398128208,1765390243548,-160.76465233,0.00040989,7]
[398128210,1765390243558,-500.0,0.00040989,31]
[398128212,1765390243567,-500.0,0.00040989,31]
[398128214,1765390243576,-500.0,0.00040989,31]
[398128216,1765390243585,-500.0,0.00040989,31]
[398128219,1765390243607,-500.0,0.00040989,31]
[398128222,1765390243619,-500.0,0.00040989,31]
[398128224,1765390243629,-500.0,0.00040989,31]
[398128226,1765390243639,-500.0,0.00040989,31]
[398128228,1765390243650,-500.0,0.00040989,31]
[398128230,1765390243660,-500.0,0.00040989,31]
[398128232,1765390243687,-500.0,0.00040989,31]
[398128234,1765390243698,-500.0,0.00040989,31]
[398128236,1765390243708,-500.0,0.00040989,31]
[398128238,1765390243719,-500.0,0.00040989,31]
[398128240,1765390243729,-500.0,0.00040989,31]
[398128242,1765390243739,-500.0,0.00040989,31]
[398128244,1765390243750,-500.0,0.00040989,31]
[398128246,1765390243760,-500.0,0.00040989,31]
[398128248,1765390243770,-500.0,0.00040989,31]
[398128250,1765390243781,-500.0,0.00040989,31]
[398128252,1765390243791,-500.0,0.00040989,31]
[398128255,1765390243801,-500.0,0.00040989,31]
[398128257,1765390243811,-500.0,0.00040989,31]
[398128259,1765390243821,-500.0,0.00040989,31]
[398128261,1765390243831,-500.0,0.00040989,31]
[398128263,1765390243840,-500.0,0.00040989,31]
[398128265,1765390243850,-585.97452475,0.00040989,31]
[398128267,1765390243860,-500.0,0.00040989,31]
[398128268,1765390243869,-500.0,0.00040989,31]
[398128269,1765390243879,-500.0,0.00040989,31]
[398128270,1765390243889,-500.0,0.00040989,31]
[398128271,1765390243899,-500.0,0.00040989,31]
[398128272,1765390243909,-500.0,0.00040989,31]
[398128273,1765390243919,-500.0,0.00040989,31]
[398128274,1765390243928,-500.0,0.00040989,31]
[398128275,1765390243938,-500.0,0.00040989,31]
[398128276,1765390243948,-500.0,0.00040989,31]
[398128277,1765390243957,-500.0,0.00040989,31]
[398128278,1765390243972,-500.0,0.00040989,31]
[398128279,1765390243982,-500.0,0.00040989,31]
[398128280,1765390243993,-500.0,0.00040989,31]
[398128281,1765390244003,-500.0,0.00040989,31]
[398128282,1765390244013,-500.0,0.00040989,31]
[398128283,1765390244023,-500.0,0.00040989,31]
[398128284,1765390244034,-500.0,0.00040989,31]
[398128285,1765390244043,-500.0,0.00040989,31]
[398128286,1765390244054,-400.0,0.00040989,31]